bitfinex/quotes_ETHUSD_20250806
["timestamp","ask_amount","ask_price","bid_price","bid_amount"]
[1754466797764,1.36990001,3646.0,3645.9,0.002]
[1754466798171,4.11263177,3646.0,3645.9,0.002]
[1754466798467,1.36990001,3646.0,3645.9,0.002]
[1754466798672,4.11263177,3646.0,3645.9,0.002]
[1754466798845,4.66263177,3646.0,3645.9,0.002]
[1754466802860,4.66263177,3646.0,3645.9,0.002]
[1754466804488,7.66263177,3646.0,3645.9,0.002]
[1754466805046,9.74563177,3646.0,3645.9,0.002]
[1754466806086,7.66263177,3646.0,3645.9,0.002]
[1754466806441,9.74663177,3646.0,3645.9,0.002]
[1754466810086,9.27733177,3646.0,3645.9,0.002]
[1754466810387,9.74663177,3646.0,3645.9,0.002]
[1754466810758,4.66263177,3646.0,3645.9,0.002]
[1754466810952,6.74663177,3646.0,3645.9,0.002]
[1754466816676,4.66263177,3646.0,3645.9,0.002]
[1754466816958,6.74663177,3646.0,3645.9,0.002]
[1754466821683,10.04163177,3646.0,3645.9,0.002]
[1754466826621,3.29318318,3645.4,3645.3,14.80559854]
[1754466826805,29.39284838,3645.4,3645.3,6.0406697]
[1754466826977,29.52964838,3645.4,3645.3,4.33944586]
[1754466827179,3.29347438,3645.1,3644.5,0.002]
[1754466827523,29.39532469,3644.9,3644.5,0.002]
[1754466828004,29.39532469,3644.9,3644.5,0.4761]
[1754466828005,8.37755949,3644.9,3644.5,0.4761]
[1754466828208,8.99305949,3644.9,3644.5,0.4761]
[1754466828513,9.42825949,3644.9,3644.5,0.002]
[1754466836591,8.99305949,3644.9,3644.5,0.002]
[1754466836989,9.42825949,3644.9,3644.5,0.002]
[1754466838424,8.99305949,3644.9,3644.5,0.4761]
[1754466838814,8.99305949,3644.9,3644.5,0.002]
[1754466838989,9.42825949,3644.9,3644.5,0.002]
[1754466840826,2.74408649,3644.2,3644.1,0.04]
[1754466841028,34.77585169,3644.2,3644.1,0.04]
[1754466841187,34.91345169,3644.2,3644.1,0.04]
[1754466841528,35.82735169,3644.2,3644.1,0.04]
[1754466846334,35.82735169,3644.2,3644.1,0.042]
[1754466848428,11.81168649,3644.2,3644.1,0.042]
[1754466848609,35.39215169,3644.2,3644.1,0.042]
[1754466848829,35.82735169,3644.2,3644.1,0.042]
[1754466852370,6.29416179,3644.1,3644.0,0.002]
[1754466852567,7.19076179,3644.1,3644.0,0.002]
[1754466853663,3.29438772,3643.8,3643.7,0.002]
[1754466853819,28.48015292,3643.8,3643.7,0.002]
[1754466854020,29.07515292,3643.8,3643.7,0.002]
[1754466854219,29.51435292,3643.8,3643.7,0.002]
[1754466854452,29.07515292,3643.8,3643.7,0.002]
[1754466854669,28.61775292,3643.8,3643.7,0.002]
[1754466854955,31.61775292,3643.8,3643.7,0.002]
[1754466855129,32.51435292,3643.8,3643.7,0.002]
[1754466855530,32.51435292,3643.8,3643.7,1e-08]
[1754466855918,32.51435292,3643.8,3643.2,0.002]
[1754466855919,3.29476436,3643.3,3643.2,0.002]
[1754466856146,28.61812956,3643.3,3643.2,0.002]
[1754466856360,32.51472956,3643.3,3643.2,0.002]
[1754466858140,6.2948397,3643.2,3643.1,0.04]
[1754466858575,7.1914397,3643.2,3643.1,1e-08]
[1754466858875,3.29491504,3643.1,3642.4,0.4899]
[1754466859078,9.27551504,3643.1,3642.4,0.4899]
[1754466859252,9.41311504,3643.1,3642.3,0.4486]
[1754466859576,9.41311504,3643.1,3642.2,0.4899]
[1754466860015,9.41311504,3643.1,3642.1,0.5319]
[1754466860016,3.29559332,3642.2,3642.1,0.5319]
[1754466860177,8.67759332,3642.2,3642.1,0.5319]
[1754466860677,8.67759332,3642.2,3642.1,0.042]
[1754466860977,9.13499332,3642.2,3642.1,0.042]
[1754466861179,11.67759332,3642.2,3642.1,0.042]
[1754466861475,12.57419332,3642.2,3642.1,0.042]
[1754466861862,12.13499332,3642.2,3642.1,0.042]
[1754466862065,11.67759332,3642.2,3642.1,0.042]
[1754466862372,11.67759332,3642.2,3642.1,0.5319]
[1754466862877,11.67759332,3642.2,3642.1,0.9805]
[1754466863047,9.59259332,3642.2,3642.1,0.042]
[1754466863248,11.67759332,3642.2,3642.1,0.9805]
[1754466863860,8.932,3642.2,3642.1,0.9805]
[1754466864061,6.847,3642.2,3642.1,0.9805]
[1754466864289,5.932,3642.2,3642.1,0.9805]
[1754466865472,5.382,3642.2,3642.1,0.9805]
[1754466865790,5.932,3642.2,3642.1,0.9805]
[1754466869112,3.847,3642.2,3642.1,0.9805]
[1754466869276,5.932,3642.2,3642.1,0.9805]
[1754466871001,3.297,3642.2,3642.1,3.7261687]
[1754466871203,5.5196,3642.2,3642.1,4.37336464]
[1754466872672,3.4346,3642.2,3642.1,4.37336464]
[1754466872875,5.5196,3642.2,3642.1,4.37336464]
[1754466876721,0.1376,3642.2,3642.1,4.37336464]
[1754466877028,2.2226,3642.2,3642.1,4.37336464]
[1754466877200,2.085,3642.2,3642.1,4.37336464]
[1754466877394,2.635,3642.2,3642.1,0.042]
[1754466877611,3.0924,3642.2,3642.1,0.042]
[1754466877898,3.5316,3642.2,3642.1,0.042]
[1754466878202,6.27719332,3642.2,3642.1,0.042]
[1754466878908,5.38059332,3642.2,3642.1,0.042]
[1754466879099,6.27719332,3642.2,3642.1,0.042]
[1754466880537,9.27719332,3642.2,3642.1,0.042]
[1754466885272,6.29589488,3641.8,3641.7,0.002]
[1754466885479,31.48266008,3641.8,3641.7,0.002]
[1754466885656,31.62026008,3641.8,3641.7,0.002]
[1754466885966,3.29619651,3641.4,3641.3,0.002]
[1754466886176,31.75695329,3641.4,3641.3,0.002]
[1754466886408,32.68915329,3641.4,3641.3,0.002]
[1754466886533,29.68915329,3641.4,3641.3,0.002]
[1754466886734,32.68915329,3641.4,3641.3,0.002]
[1754466888234,32.68915329,3641.4,3641.3,1e-08]
[1754466892436,31.75695329,3641.4,3641.3,1e-08]
[1754466892848,32.23645329,3641.4,3641.3,1e-08]
[1754466893060,32.68915329,3641.4,3641.3,1e-08]
[1754466893268,29.67195329,3641.4,3641.3,1e-08]
[1754466893478,31.75695329,3641.4,3641.3,1e-08]
[1754466894377,31.20695329,3641.4,3641.3,0.45580001]
[1754466894551,31.75695329,3641.4,3641.3,0.45580001]
[1754466894947,31.75695329,3641.4,3641.3,0.92040001]
[1754466894948,8.65518809,3641.4,3641.3,0.92040001]
[1754466896271,6.43379651,3641.4,3641.3,0.45580001]
[1754466896569,8.51979651,3641.4,3641.3,0.92040001]
[1754466897272,11.81879651,3641.4,3641.3,0.92040001]
[1754466897703,8.5226,3641.4,3641.3,0.92040001]
[1754466898243,9.0726,3641.4,3641.3,0.92040001]
[1754466898442,8.5226,3641.4,3641.3,0.92040001]
[1754466898774,9.0726,3641.4,3641.3,0.92040001]
[1754466898980,3.4366,3641.4,3641.3,1.29128954]
[1754466899175,5.5226,3641.4,3641.3,4.03756147]
[1754466899966,5.5226,3641.4,3641.3,1.29128954]
[1754466900466,5.5226,3641.4,3641.3,4.03756147]
[1754466902189,3.4366,3641.4,3641.3,4.03756147]
[1754466902387,5.384,3641.4,3641.3,4.03756147]
[1754466903392,5.384,3641.4,3641.3,0.92040001]
[1754466903562,5.5216,3641.4,3641.3,0.92040001]
[1754466904202,5.5216,3641.4,3641.3,3.66667194]
[1754466904403,5.5216,3641.4,3641.3,0.92040001]
[1754466904601,5.5216,3641.4,3641.3,0.45580001]
[1754466904911,5.5216,3641.4,3641.3,0.92040001]
[1754466906698,5.5216,3641.4,3641.3,3.66667194]
[1754466908896,5.5216,3641.4,3641.3,0.92040001]
[1754466909103,5.5216,3641.4,3641.3,4.31219281]
[1754466909896,3.4366,3641.4,3641.3,4.31219281]
[1754466910104,5.384,3641.4,3641.3,4.31219281]
[1754466914409,3.299,3641.4,3641.3,4.31219281]
[1754466914572,5.384,3641.4,3641.3,7.44979281]
[1754466916979,2.085,3641.4,3641.3,7.44979281]
[1754466918076,2.085,3641.4,3641.3,11.7297928]
[1754466920382,0.1376,3641.8,3641.3,11.7297928]
[1754466920383,0.1376,3641.8,3641.7,2.74597028]
[1754466920588,0.1376,3641.8,3641.7,3.02056731]
[1754466920905,2.2226,3641.8,3641.7,3.92356731]
[1754466921306,2.085,3641.8,3641.7,3.92356731]
[1754466921617,2.085,3641.8,3641.7,4.06116731]
[1754466921779,2.085,3641.8,3641.7,3.15816731]
[1754466922180,2.085,3641.8,3641.7,2.74597028]
[1754466922508,2.6739,3641.8,3641.7,2.74597028]
[1754466922887,2.2226,3641.8,3641.7,2.74597028]
[1754466923395,3.1298,3641.8,3641.7,2.74597028]
[1754466924332,0.55,3641.7,3641.3,2.74626686]
[1754466924631,0.9072,3641.6,3641.5,2.74611799]
[1754466925127,0.1376,3641.6,3641.5,2.74611799]
[1754466927483,0.1376,3641.6,3641.5,3.21691799]
[1754466927744,0.1376,3641.6,3641.5,3.64911799]
[1754466929043,0.1376,3641.6,3641.5,3.21691799]
[1754466929730,0.1376,3641.6,3641.5,2.74611799]
[1754466929894,0.5889,3641.6,3641.5,2.74611799]
[1754466930247,1.0448,3641.6,3641.5,2.74611799]
[1754466930890,0.5889,3641.6,3641.5,2.74611799]
[1754466931090,0.1376,3641.6,3641.5,2.74611799]
[1754466931338,0.5889,3641.6,3641.5,2.74611799]
[1754466931513,0.5899,3641.6,3641.5,2.74611799]
[1754466931704,0.1386,3641.6,3641.5,2.74611799]
[1754466931891,0.1386,3641.6,3641.5,3.21691799]
[1754466932091,0.1386,3641.6,3641.5,3.64911799]
[1754466932327,0.1386,3641.6,3641.5,4.28865022]
[1754466932798,0.001,3641.6,3641.5,4.42625022]
[1754466933092,2.086,3641.6,3641.5,4.42625022]
[1754466936830,0.001,3641.6,3641.5,4.42625022]
[1754466937398,1e-08,3641.6,3641.5,4.42625022]
[1754466938845,1e-08,3641.6,3641.5,7.42625022]
[1754466939332,1e-08,3641.6,3641.5,3.52325022]
[1754466939917,0.45130001,3641.6,3641.5,3.38565022]
[1754466940138,0.45130001,3641.6,3641.5,2.74611799]
[1754466940742,1e-08,3641.6,3641.5,3.24051799]
[1754466941045,1e-08,3641.6,3641.5,3.69341799]
[1754466942739,1e-08,3641.6,3641.5,3.24051799]
[1754466943323,1e-08,3641.6,3641.5,3.69341799]
[1754466944462,1e-08,3641.6,3641.5,3.24051799]
[1754466944637,1e-08,3641.6,3641.5,5.96917985]
[1754466944954,1e-08,3641.6,3641.5,6.42207985]
[1754466946960,1e-08,3641.6,3641.5,6.55967985]
[1754466947121,1e-08,3641.6,3641.5,9.55967985]
[1754466954229,1e-08,3641.6,3641.5,9.56167985]
[1754466958232,1e-08,3642.0,3641.9,25.84758468]
[1754466958460,1e-08,3642.0,3641.9,31.57624654]
[1754466958626,1e-08,3642.1,3642.0,2.74574409]
[1754466958831,1e-08,3642.2,3642.1,5.7456687]
[1754466959047,1e-08,3642.2,3642.1,6.6929687]
[1754466959266,1e-08,3642.2,3642.1,5.7456687]
[1754466959431,1e-08,3642.2,3642.1,9.42163056]
[1754466961065,1e-08,3642.5,3642.4,5.74544256]
[1754466961245,1e-08,3642.5,3642.4,28.98480776]
[1754466961446,1e-08,3642.5,3642.4,29.93210776]
[1754466961645,1e-08,3642.7,3642.6,2.74529182]
[1754466961849,1e-08,3642.8,3642.7,5.74521646]
[1754466962156,1e-08,3642.8,3642.7,6.83011646]
[1754466966261,1e-08,3642.8,3642.7,6.08798692]
[1754466966447,1e-08,3642.8,3642.7,30.87713044]
[1754466966856,1e-08,3642.8,3642.7,31.37153044]
[1754466968088,1e-08,3642.8,3642.7,31.82443044]
[1754466968438,1e-08,3642.8,3642.7,32.30683044]
[1754466970247,0.48240001,3642.8,3642.7,10.13659478]
[1754466970676,1e-08,3642.8,3642.7,31.48655998]
[1754466970880,1e-08,3642.8,3642.7,32.05285998]
[1754466975148,1e-08,3642.8,3642.7,31.15435998]
[1754466975350,0.88790001,3642.8,3642.7,8.05259478]
[1754466975678,0.45400001,3642.8,3642.7,7.57019478]
[1754466975843,1e-08,3642.8,3642.7,7.57019478]
[1754466977969,0.45400001,3642.8,3642.7,7.57019478]
[1754466978171,1e-08,3642.8,3642.7,7.57019478]
[1754466978381,1e-08,3642.8,3642.7,8.46869478]
[1754466978984,1e-08,3642.8,3642.7,8.03999478]
[1754466979155,1e-08,3642.8,3642.7,8.46869478]
[1754466980084,1e-08,3642.8,3642.7,10.55169478]
[1754466980601,1e-08,3643.2,3643.1,2.74491504]
[1754466980752,0.04,3643.9,3643.7,2.74446304]
[1754466980957,0.04,3643.9,3643.7,28.84622824]
[1754466981360,0.04,3643.9,3643.7,29.59122824]
[1754466983257,0.04,3643.9,3643.7,29.12142824]
[1754466983590,0.04,3643.9,3643.7,32.3198901]
[1754466983791,0.04,3643.9,3643.8,5.74438772]
[1754466984092,0.001,3644.1,3644.0,5.7442371]
[1754466984598,0.001,3644.1,3644.0,6.3516371]
[1754466985786,0.001,3644.1,3644.0,5.8818371]
[1754466985988,0.001,3644.1,3644.0,8.61049896]
[1754466986388,0.455,3644.1,3644.0,8.61049896]
[1754466989104,0.8889,3644.1,3644.0,5.7442371]
[1754466990697,0.455,3644.1,3644.0,5.7442371]
[1754466990899,0.8889,3644.1,3644.0,5.7442371]
[1754466992997,0.455,3644.1,3644.0,5.7442371]
[1754466993898,0.001,3644.1,3644.0,6.45877922]
[1754466994904,0.001,3644.1,3644.0,10.73877922]
[1754466995625,1e-08,3644.1,3644.0,33.84054442]
[1754466995765,1e-08,3644.1,3644.0,34.73904442]
[1754466995970,1e-08,3644.1,3644.0,36.95964442]
[1754466996469,1e-08,3644.1,3644.0,36.82204442]
[1754466996802,1e-08,3644.1,3644.0,36.95964442]
[1754466999107,1e-08,3644.1,3644.0,11.34617922]
[1754466999266,1e-08,3644.1,3644.0,36.53094442]
[1754466999470,1e-08,3644.1,3644.0,36.95964442]
[1754466999771,1e-08,3644.1,3644.0,37.39354442]
[1754467003707,1e-08,3644.5,3644.4,2.7439359]
[1754467003865,1e-08,3644.5,3644.4,26.53129664]
[1754467004069,1e-08,3644.5,3644.4,26.98959664]
[1754467004270,1e-08,3644.5,3644.4,27.02519664]
[1754467004772,0.94320001,3644.5,3644.4,26.53129664]
[1754467006786,0.94320001,3644.5,3644.4,30.81129664]
[1754467007573,0.49390001,3644.5,3644.4,30.81129664]
[1754467008778,0.94320001,3644.5,3644.4,7.70953144]
[1754467009717,1e-08,3644.5,3644.4,7.70953144]
[1754467010559,1e-08,3644.5,3644.4,10.24983144]
[1754467012337,1e-08,3644.5,3644.4,9.79153144]
[1754467012515,0.49390001,3644.5,3644.4,9.79153144]
[1754467013014,0.94320001,3644.5,3644.4,9.79153144]
[1754467013838,0.94320001,3644.5,3644.4,7.70953144]
[1754467014338,1e-08,3644.5,3644.4,7.70953144]
[1754467014506,0.49390001,3644.5,3644.4,7.70953144]
[1754467015037,0.94320001,3644.5,3644.4,7.70953144]
[1754467015944,0.49390001,3644.5,3644.4,7.70953144]
[1754467016243,1e-08,3644.5,3644.4,7.70953144]
[1754467018381,0.24950001,3646.0,3645.8,2.74288222]
[1754467018674,0.24950001,3646.0,3645.8,5.74288222]
[1754467018838,0.9832,3645.9,3645.8,5.87968222]
[1754467019768,0.9832,3645.9,3645.8,6.70361922]
[1754467021852,0.9832,3645.9,3645.8,3.70361922]
[1754467022161,0.9832,3645.9,3645.8,2.74288222]
[1754467023759,0.9832,3645.9,3645.7,0.1368]
[1754467024055,0.9432,3645.8,3645.7,2.74295745]
[1754467024371,1.08,3645.8,3645.7,2.74295745]
[1754467026086,1.08,3645.8,3645.3,0.1368]
[1754467026288,0.1368,3645.6,3644.8,0.1368]
[1754467026590,0.9432,3645.5,3645.3,2.74320738]
[1754467026801,0.1368,3645.3,3645.2,2.74327847]
[1754467026997,0.6307,3645.3,3645.2,2.74327847]
[1754467027160,1.08,3645.3,3645.2,2.74327847]
[1754467027490,1.08,3645.3,3644.9,2.74350248]
[1754467027657,0.1368,3645.1,3645.0,2.74347747]
[1754467027862,1.08,3645.1,3645.0,2.74347747]
[1754467028460,1.08,3645.1,3644.9,2.74355677]
[1754467028694,0.9432,3645.0,3644.8,2.74363077]
[1754467028901,0.1368,3645.1,3644.9,2.74355949]
[1754467029495,0.1368,3645.1,3645.0,2.74348422]
[1754467030066,1.08,3645.1,3645.0,2.74348422]
[1754467030596,1.08,3645.1,3644.7,2.74366113]
[1754467030798,0.1368,3644.9,3644.5,2.74386061]
[1754467031000,0.4697,3645.2,3644.7,2.74371004]
[1754467031216,0.6065,3645.2,3645.1,2.74340895]
[1754467031362,1.0484,3645.2,3645.1,2.74340895]
[1754467031904,0.6065,3645.2,3645.1,2.74340895]
[1754467032195,2.7115,3645.4,3645.3,2.74325844]
[1754467032497,3.1534,3645.4,3645.3,2.74325844]
[1754467033229,3.1534,3645.4,3644.8,0.1368]
[1754467033230,3.1534,3645.4,3645.2,2.74330691]
[1754467033429,1.4616,3645.3,3644.1,0.002]
[1754467033725,0.1368,3644.7,3644.4,2.74388813]
[1754467033934,3.0176,3644.6,3644.4,2.74391253]
[1754467034113,0.9116,3644.5,3644.1,0.002]
[1754467034287,0.1376,3644.2,3644.1,0.002]
[1754467034804,1.0492,3644.2,3644.1,0.002]
[1754467035721,1.0492,3644.2,3644.1,2.74616179]
[1754467036627,1.0492,3644.2,3644.1,0.002]
[1754467038995,1.0492,3644.2,3644.1,2.74616179]
[1754467040019,1.0492,3644.2,3644.1,0.002]
[1754467040222,1.0492,3644.2,3644.1,2.74616179]
[1754467041036,1.0492,3644.2,3644.1,0.002]
[1754467042053,1.5992,3644.2,3644.1,0.002]
[1754467044323,0.6876,3644.2,3644.1,0.002]
[1754467044554,1.5992,3644.2,3644.1,0.002]
[1754467046468,1.5992,3644.2,3644.1,2.74616179]
[1754467046764,0.1376,3644.2,3644.1,2.74616179]
[1754467046965,2.2426,3644.2,3644.1,3.22746179]
[1754467047164,2.2426,3644.2,3644.1,4.26603898]
[1754467047545,2.105,3644.2,3644.1,4.26603898]
[1754467047856,0.1376,3644.3,3644.2,2.74408649]
[1754467048068,2.2426,3644.3,3644.2,3.66678649]
[1754467048267,2.2426,3644.3,3644.2,4.64223005]
[1754467048438,2.105,3644.3,3644.2,4.64223005]
[1754467048639,2.105,3644.3,3644.2,4.77983005]
[1754467049549,2.105,3644.3,3644.2,3.71953005]
[1754467049755,2.5747,3644.3,3644.2,2.74408649]
[1754467049949,2.105,3644.3,3644.2,2.74408649]
[1754467050152,2.105,3644.3,3644.2,3.22538649]
[1754467050472,0.1368,3644.4,3644.3,2.74401119]
[1754467050639,2.2428,3644.4,3644.3,2.74401119]
[1754467051276,2.7125,3644.4,3644.3,2.74401119]
[1754467051677,3.1544,3644.4,3644.3,2.74401119]
[1754467052376,2.2428,3644.4,3644.3,2.74401119]
[1754467052577,2.2428,3644.4,3644.2,2.74405878]
[1754467052746,0.9116,3644.3,3644.2,2.74405878]
[1754467052945,0.4697,3644.3,3644.2,2.74405878]
[1754467053477,0.9116,3644.3,3644.1,0.002]
[1754467053779,1.0492,3644.2,3644.1,2.74611397]
[1754467054342,1.5992,3644.2,3644.1,0.002]
[1754467059445,1.5992,3644.2,3644.1,2.74616179]
[1754467059446,2.2406,3644.2,3644.1,2.74616179]
[1754467059578,0.1376,3644.2,3644.1,4.26603657]
[1754467059773,3.7369,3644.9,3644.6,2.743738]
[1754467060013,3.295,3644.9,3644.7,2.74371004]
[1754467060228,2.104,3644.8,3644.7,2.74371004]
[1754467060913,3.295,3644.9,3644.8,2.74363476]
[1754467061276,5.5358,3644.9,3644.8,2.74363476]
[1754467062406,3.4318,3644.9,3644.8,3.23773476]
[1754467062716,5.5348,3644.9,3644.8,3.67583476]
[1754467064115,5.5348,3644.9,3644.8,2.74363476]
[1754467064293,5.5348,3644.9,3644.7,2.74368295]
[1754467065214,5.5348,3644.9,3644.8,2.74363476]
[1754467066385,5.5348,3644.9,3644.3,4.282]
[1754467066386,6.4302,3644.9,3644.7,2.74367722]
[1754467066587,2.7056,3644.9,3644.8,2.74363476]
[1754467067010,2.2398,3644.9,3644.8,2.74363476]
[1754467073312,2.2398,3644.9,3644.3,4.282]
[1754467073514,0.1368,3644.7,3644.6,2.74371719]
[1754467073712,0.4658,3644.8,3644.6,2.74371719]
[1754467074025,0.1368,3644.7,3644.6,2.74371719]
[1754467075430,0.1368,3644.7,3644.5,2.74383095]
[1754467075620,0.1368,3644.6,3644.5,2.74383095]
[1754467076253,0.1368,3644.6,3644.3,4.282]
[1754467076459,2.5286,3644.5,3644.3,4.282]
[1754467076662,0.1368,3644.4,3644.3,4.282]
[1754467076821,1.0322,3644.4,3644.3,4.282]
[1754467077637,0.1368,3644.4,3644.3,2.74601119]
[1754467078838,0.1368,3644.4,3644.3,0.002]
[1754467079961,0.1368,3644.4,3644.3,2.74601119]
[1754467080425,0.1368,3644.4,3644.3,0.002]
[1754467081370,0.1368,3644.4,3644.3,2.74601119]
[1754467081735,1.0322,3644.4,3644.3,0.002]
[1754467084283,1.5822,3644.4,3644.3,0.002]
[1754467085866,0.6868,3644.4,3644.3,0.002]
[1754467086879,1.1526,3644.4,3644.3,0.002]
[1754467087237,0.6868,3644.4,3644.3,0.002]
[1754467087560,0.1368,3644.4,3644.3,0.002]
[1754467094106,0.1368,3644.4,3644.3,3.69391119]
[1754467094263,0.1368,3644.4,3644.3,4.05837198]
[1754467094463,2.099,3644.5,3644.4,2.7439359]
[1754467094689,0.1368,3644.6,3644.5,2.74386061]
[1754467094879,2.2318,3644.6,3644.5,3.69176061]
[1754467098425,2.2318,3644.6,3644.5,3.22716061]
[1754467099078,2.2318,3644.6,3644.5,3.69176061]
[1754467099670,2.095,3644.6,3644.5,4.37197634]
[1754467100373,2.095,3644.6,3644.5,3.69176061]
[1754467102325,2.095,3644.6,3644.5,3.22716061]
[1754467103520,2.095,3644.6,3644.5,2.74386061]
[1754467104417,3.0391,3644.6,3644.5,2.74386061]
[1754467104583,3.0391,3644.6,3644.3,0.002]
[1754467104584,3.1759,3644.6,3644.3,0.002]
[1754467104790,0.1368,3644.4,3644.3,0.002]
[1754467105120,0.1368,3644.4,3644.3,2.74601119]
[1754467105618,0.6285,3644.4,3644.3,2.74601119]
[1754467106422,1.0809,3644.4,3644.3,2.74601119]
[1754467106917,0.6285,3644.4,3644.3,2.74601119]
[1754467107615,1.0809,3644.4,3644.3,2.74601119]
[1754467107817,0.1368,3644.4,3644.3,2.74601119]
[1754467108021,0.1368,3644.4,3644.3,3.22931119]
[1754467108522,0.1368,3644.4,3644.3,3.69391119]
[1754467109916,0.1368,3644.4,3644.3,3.22931119]
[1754467111128,0.1368,3644.4,3644.3,2.74601119]
[1754467113402,0.1368,3644.4,3644.3,3.22931119]
[1754467117547,0.1368,3644.4,3644.3,2.74601119]
[1754467118039,0.6285,3644.4,3644.3,2.74601119]
[1754467119819,0.1368,3644.4,3644.3,2.74601119]
[1754467121132,0.6188,3644.4,3644.3,0.002]
[1754467121463,1.0482,3644.4,3644.3,2.74601119]
[1754467121828,0.6188,3644.4,3644.3,2.74601119]
[1754467122435,0.1368,3644.4,3644.3,2.74601119]
[1754467122726,0.6188,3644.4,3644.3,2.74601119]
[1754467123663,0.1368,3644.4,3644.3,2.74601119]
[1754467125176,0.6188,3644.4,3644.3,2.74601119]
[1754467126177,0.1368,3644.4,3644.3,2.74601119]
[1754467131882,0.6188,3644.4,3644.3,2.74601119]
[1754467132185,0.1368,3644.4,3644.3,3.24471119]
[1754467132685,0.1368,3644.4,3644.3,3.71911119]
[1754467134369,0.1368,3644.4,3644.3,3.24471119]
[1754467135283,0.1368,3644.4,3644.3,3.71911119]
[1754467135792,0.1368,3644.4,3644.3,2.74601119]
[1754467138293,0.1368,3644.4,3644.3,3.24471119]
[1754467138522,0.1368,3644.4,3644.3,3.71911119]
[1754467139721,2.095,3644.6,3644.5,2.74386061]
[1754467139911,2.095,3644.6,3644.5,3.71696061]
[1754467140099,2.2318,3644.6,3644.5,3.71696061]
[1754467141341,0.1368,3644.6,3644.5,2.74386061]
[1754467141515,2.2238,3644.6,3644.5,3.71696061]
[1754467142989,2.2238,3644.6,3644.5,2.74386061]
[1754467143200,2.2238,3644.6,3644.5,3.24256061]
[1754467143433,2.2238,3644.6,3644.5,3.71696061]
[1754467143780,2.2238,3644.6,3644.5,3.24256061]
[1754467144499,3.846,3645.3,3645.2,2.74333369]
[1754467144698,3.846,3645.3,3644.9,2.74350684]
[1754467144699,0.55,3645.2,3644.9,2.74350684]
[1754467144994,1.0482,3645.1,3644.9,2.74350684]
[1754467145221,0.1368,3645.1,3645.0,2.74348422]
[1754467145831,1.0482,3645.1,3644.9,2.74353795]
[1754467146054,0.9114,3645.1,3645.0,2.74348422]
[1754467146489,0.9114,3645.1,3644.9,2.74353145]
[1754467146642,0.9114,3645.0,3644.9,2.74353145]
[1754467146836,0.4294,3645.0,3644.9,2.74353145]
[1754467147144,1.0482,3645.0,3644.9,2.74353145]
[1754467148856,0.55,3644.9,3644.5,2.74381805]
[1754467149062,2.087,3644.8,3644.4,2.7439359]
[1754467149244,0.1368,3644.5,3644.4,2.7439359]
[1754467149561,1.0482,3644.5,3644.4,2.7439359]
[1754467150170,1.0482,3644.5,3644.3,2.74595915]
[1754467150370,0.1368,3644.5,3644.4,2.7439359]
[1754467150934,1.0916,3644.5,3644.3,2.74598082]
[1754467151135,0.6023,3644.5,3644.3,2.74598082]
[1754467151364,0.4893,3644.4,3644.3,2.74598082]
[1754467153512,0.1368,3644.5,3644.4,2.7439359]
[1754467153678,0.4893,3644.4,3644.3,2.74599143]
[1754467153866,0.9548,3644.4,3644.3,2.74599143]
[1754467154562,1.5048,3644.4,3644.3,0.002]
[1754467158058,2.637,3644.4,3644.3,0.002]
[1754467158583,2.087,3644.4,3644.3,0.002]
[1754467159277,2.087,3644.4,3644.3,3.20221119]
[1754467159652,2.637,3644.4,3644.3,0.002]
[1754467159881,3.1263,3644.4,3644.3,0.002]
[1754467160082,2.637,3644.4,3644.3,0.002]
[1754467160251,2.637,3644.4,3644.3,3.20221119]
[1754467160592,2.087,3644.4,3644.3,3.64931119]
[1754467162553,2.087,3644.4,3644.3,3.20221119]
[1754467163782,2.087,3644.4,3644.3,3.64931119]
[1754467164982,2.087,3644.4,3644.3,3.20221119]
[1754467166906,2.087,3644.4,3644.3,3.64931119]
[1754467167616,2.087,3644.4,3644.3,3.20221119]
[1754467168530,2.5763,3644.4,3644.3,2.74601119]
[1754467168811,2.087,3644.4,3644.3,2.74601119]
[1754467170707,3.5918,3644.4,3644.3,0.002]
[1754467177801,2.637,3644.4,3644.3,0.002]
[1754467179516,2.637,3644.4,3644.3,0.4582]
[1754467180532,2.637,3644.4,3644.3,3.20221119]
[1754467180734,2.637,3644.4,3644.3,3.21421119]
[1754467181045,2.637,3644.4,3644.3,3.66501119]
[1754467181392,0.1368,3644.5,3644.4,2.7439359]
[1754467181690,2.2238,3644.5,3644.4,3.6629359]
[1754467184609,2.2238,3644.5,3644.4,3.2121359]
[1754467185144,0.55,3644.4,3644.3,0.002]
[1754467185300,1.477,3644.4,3644.3,0.002]
[1754467186091,4.2209359,3644.4,3644.3,0.002]
[1754467187423,7.2209359,3644.4,3644.3,0.002]
[1754467189028,30.3227011,3644.4,3644.3,0.002]
[1754467189768,7.2209359,3644.4,3644.3,0.002]
[1754467190451,9.4447359,3644.4,3644.3,0.002]
[1754467192150,2.2238,3644.4,3644.3,0.002]
[1754467192354,2.2238,3644.4,3644.3,0.4702]
[1754467192667,2.7738,3644.4,3644.3,0.4702]
[1754467192845,0.6868,3644.4,3644.3,0.4702]
[1754467193027,2.7738,3644.4,3644.3,0.921]
[1754467195546,0.6868,3644.4,3644.3,0.002]
[1754467195847,2.7738,3644.4,3644.3,0.002]
[1754467196750,2.7738,3644.4,3644.3,0.4702]
[1754467197055,2.7738,3644.4,3644.3,0.921]
[1754467198357,2.7738,3644.4,3644.3,0.4702]
[1754467198521,2.7738,3644.4,3644.3,0.002]
[1754467199443,2.7738,3644.4,3644.3,0.921]
[1754467199753,2.7738,3644.4,3644.3,0.4702]
[1754467200461,3.7008,3644.4,3644.3,0.002]
[1754467200659,9.4447359,3644.4,3644.3,0.002]
[1754467202859,7.3577359,3644.4,3644.3,0.002]
[1754467203070,9.4447359,3644.4,3644.3,0.002]